[Event "Titled Tuesday Blitz April 4 Early 2023"]
[White "Hnydiuk, Aleksander"]
[Black "Qashashvili, Alexandre"]
[WhiteFideId "1109057"]
[BlackFideId "13600842"]
[WhiteElo "2374"]
[BlackElo "2405"]
[Result "0-1"]
[Round "10"]
[TimeControl "180+2"]
[Date "2023.04.04"]
[WhiteClock "0:02:50"]
[BlackClock "0:00:53"]

1. c4 {[%clk 0:03:00]}  c6 {[%clk 0:02:56]} 2. Nc3 {[%clk 0:03:01]}  d5 {[%clk 0:02:56]} 3. e3 {[%clk 0:03:02]}  Nf6 {[%clk 0:02:55]} 4. f4 {[%clk 0:03:02]}  Bg4 {[%clk 0:02:56]} 5. Nf3 {[%clk 0:03:02]}  e6 {[%clk 0:02:56]} 6. Be2 {[%clk 0:03:02]}  Bd6 {[%clk 0:02:55]} 7. O-O {[%clk 0:03:03]}  Nbd7 {[%clk 0:02:55]} 8. d4 {[%clk 0:03:02]}  O-O {[%clk 0:02:52]} 9. Ne5 {[%clk 0:03:02]}  Bxe2 {[%clk 0:02:52]} 10. Qxe2 {[%clk 0:03:03]}  Qe7 {[%clk 0:02:49]} 11. Bd2 {[%clk 0:03:03]}  Bb4 {[%clk 0:02:44]} 12. Be1 {[%clk 0:03:03]}  Bxc3 {[%clk 0:02:44]} 13. bxc3 {[%clk 0:03:02]}  Nxe5 {[%clk 0:02:42]} 14. fxe5 {[%clk 0:03:02]}  Ne4 {[%clk 0:02:43]} 15. Rb1 {[%clk 0:03:01]}  b6 {[%clk 0:02:42]} 16. a4 {[%clk 0:03:00]}  f5 {[%clk 0:02:37]} 17. Qa2 {[%clk 0:02:58]}  Qg5 {[%clk 0:02:28]} 18. Bf2 {[%clk 0:02:57]}  f4 {[%clk 0:02:24]} 19. exf4 {[%clk 0:02:56]}  Qxf4 {[%clk 0:02:20]} 20. Rb2 {[%clk 0:02:54]}  Nxf2 {[%clk 0:02:17]} 21. Rbxf2 {[%clk 0:02:53]}  Qe3 {[%clk 0:02:17]} 22. Qd2 {[%clk 0:02:53]}  Qxd2 {[%clk 0:02:11]} 23. Rxd2 {[%clk 0:02:54]}  Rxf1+ {[%clk 0:02:11]} 24. Kxf1 {[%clk 0:02:55]}  dxc4 {[%clk 0:02:11]} 25. a5 {[%clk 0:02:55]}  b5 {[%clk 0:02:10]} 26. a6 {[%clk 0:02:54]}  Rb8 {[%clk 0:02:06]} 27. Ke2 {[%clk 0:02:55]}  Rb6 {[%clk 0:02:06]} 28. Ra2 {[%clk 0:02:55]}  Kf7 {[%clk 0:02:06]} 29. Ke3 {[%clk 0:02:55]}  Ke7 {[%clk 0:02:02]} 30. Ke4 {[%clk 0:02:55]}  Kd7 {[%clk 0:01:55]} 31. h4 {[%clk 0:02:56]}  Ke7 {[%clk 0:01:54]} 32. g4 {[%clk 0:02:55]}  Kf7 {[%clk 0:01:52]} 33. h5 {[%clk 0:02:55]}  h6 {[%clk 0:01:52]} 34. Kf4 {[%clk 0:02:54]}  Ke7 {[%clk 0:01:45]} 35. g5 {[%clk 0:02:54]}  hxg5+ {[%clk 0:01:42]} 36. Kxg5 {[%clk 0:02:55]}  Kf7 {[%clk 0:01:42]} 37. Rf2+ {[%clk 0:02:55]}  Kg8 {[%clk 0:01:19]} 38. Ra2 {[%clk 0:02:54]}  Kh7 {[%clk 0:01:18]} 39. Ra1 {[%clk 0:02:54]}  b4 {[%clk 0:01:15]} 40. cxb4 {[%clk 0:02:53]}  Rxb4 {[%clk 0:01:16]} 41. Ra5 {[%clk 0:02:53]}  Rb5 {[%clk 0:01:14]} 42. Ra4 {[%clk 0:02:52]}  c5 {[%clk 0:01:05]} 43. Rxc4 {[%clk 0:02:52]}  cxd4 {[%clk 0:01:06]} 44. Kf4 {[%clk 0:02:52]}  Rd5 {[%clk 0:00:56]} 45. Rc6 {[%clk 0:02:51]}  d3 {[%clk 0:00:54]} 46. Rxe6 {[%clk 0:02:50]}  d2 {[%clk 0:00:53]} 0-1


[Site "https://www.chess.com"]

[Event "Titled Tuesday Blitz April 4 Early 2023"]
[White "Tagliata"]
[Black "Vaglio Munoz, Jaime"]
[BlackFideId "6500145"]
[WhiteElo "2285"]
[BlackElo "2199"]
[Result "1/2-1/2"]
[Round "10"]
[TimeControl "180+2"]
[Date "2023.04.04"]
[WhiteClock "0:00:15"]
[BlackClock "0:00:16"]

1. e4 {[%clk 0:02:56]}  e6 {[%clk 0:03:00]} 2. d4 {[%clk 0:02:55]}  d5 {[%clk 0:03:00]} 3. e5 {[%clk 0:02:56]}  c5 {[%clk 0:02:59]} 4. c3 {[%clk 0:02:57]}  Qb6 {[%clk 0:02:59]} 5. Nf3 {[%clk 0:02:56]}  Bd7 {[%clk 0:03:00]} 6. Be2 {[%clk 0:02:55]}  cxd4 {[%clk 0:02:59]} 7. cxd4 {[%clk 0:02:53]}  Bb5 {[%clk 0:03:00]} 8. Bxb5+ {[%clk 0:02:51]}  Qxb5 {[%clk 0:03:01]} 9. Na3 {[%clk 0:02:52]}  Bxa3 {[%clk 0:02:58]} 10. bxa3 {[%clk 0:02:50]}  Nc6 {[%clk 0:02:57]} 11. Qe2 {[%clk 0:02:47]}  Qxe2+ {[%clk 0:02:52]} 12. Kxe2 {[%clk 0:02:48]}  Nge7 {[%clk 0:02:52]} 13. Be3 {[%clk 0:02:45]}  Na5 {[%clk 0:02:51]} 14. Rab1 {[%clk 0:02:43]}  b6 {[%clk 0:02:50]} 15. Nd2 {[%clk 0:02:40]}  h6 {[%clk 0:02:48]} 16. Rhc1 {[%clk 0:02:40]}  Kd7 {[%clk 0:02:48]} 17. Rc2 {[%clk 0:02:39]}  Rhc8 {[%clk 0:02:46]} 18. Rbc1 {[%clk 0:02:39]}  Rxc2 {[%clk 0:02:45]} 19. Rxc2 {[%clk 0:02:40]}  g5 {[%clk 0:02:40]} 20. Kd3 {[%clk 0:02:32]}  Rg8 {[%clk 0:02:32]} 21. f3 {[%clk 0:02:28]}  h5 {[%clk 0:02:32]} 22. Bf2 {[%clk 0:02:28]}  g4 {[%clk 0:02:31]} 23. f4 {[%clk 0:02:27]}  Nf5 {[%clk 0:02:30]} 24. Be1 {[%clk 0:02:26]}  h4 {[%clk 0:02:29]} 25. a4 {[%clk 0:02:21]}  Nc6 {[%clk 0:02:28]} 26. Nb3 {[%clk 0:02:20]}  a5 {[%clk 0:02:25]} 27. Rb2 {[%clk 0:02:14]}  Kc7 {[%clk 0:02:23]} 28. Bc3 {[%clk 0:02:08]}  h3 {[%clk 0:01:57]} 29. g3 {[%clk 0:02:07]}  Rh8 {[%clk 0:01:57]} 30. Be1 {[%clk 0:02:01]}  Rc8 {[%clk 0:01:52]} 31. Bc3 {[%clk 0:01:57]}  Rh8 {[%clk 0:01:43]} 32. Be1 {[%clk 0:01:56]}  Kd7 {[%clk 0:01:24]} 33. Bf2 {[%clk 0:01:52]}  Nb4+ {[%clk 0:01:21]} 34. Kd2 {[%clk 0:01:51]}  Rc8 {[%clk 0:01:21]} 35. Nc1 {[%clk 0:01:45]}  Rc4 {[%clk 0:01:01]} 36. Ne2 {[%clk 0:01:30]}  Nc6 {[%clk 0:00:57]} 37. Rxb6 {[%clk 0:01:27]}  Kc7 {[%clk 0:00:57]} 38. Rb5 {[%clk 0:01:11]}  Rxa4 {[%clk 0:00:54]} 39. Nc3 {[%clk 0:01:06]}  Rc4 {[%clk 0:00:53]} 40. Kd3 {[%clk 0:00:56]}  Nfxd4 {[%clk 0:00:40]} 41. Rxd5 {[%clk 0:00:21]}  exd5 {[%clk 0:00:36]} 42. Nxd5+ {[%clk 0:00:20]}  Kb7 {[%clk 0:00:35]} 43. Kxc4 {[%clk 0:00:21]}  Nf5 {[%clk 0:00:31]} 44. Ne3 {[%clk 0:00:20]}  Nxe3+ {[%clk 0:00:27]} 45. Bxe3 {[%clk 0:00:20]}  Ne7 {[%clk 0:00:26]} 46. a3 {[%clk 0:00:20]}  Kc6 {[%clk 0:00:27]} 47. Bf2 {[%clk 0:00:20]}  Nd5 {[%clk 0:00:26]} 48. Kd4 {[%clk 0:00:19]}  Nb6 {[%clk 0:00:25]} 49. f5 {[%clk 0:00:19]}  Nd5 {[%clk 0:00:24]} 50. Be1 {[%clk 0:00:16]}  Ne7 {[%clk 0:00:23]} 51. Bxa5 {[%clk 0:00:16]}  Nxf5+ {[%clk 0:00:22]} 52. Ke4 {[%clk 0:00:16]}  Nxg3+ {[%clk 0:00:22]} 53. Kf4 {[%clk 0:00:15]}  Nf1 {[%clk 0:00:20]} 54. Kxg4 {[%clk 0:00:15]}  Nxh2+ {[%clk 0:00:20]} 55. Kxh3 {[%clk 0:00:16]}  Nf3 {[%clk 0:00:20]} 56. Bc3 {[%clk 0:00:15]}  Kd5 {[%clk 0:00:19]} 57. Kg4 {[%clk 0:00:15]}  Nxe5+ {[%clk 0:00:16]} 58. Bxe5 {[%clk 0:00:14]}  Kxe5 {[%clk 0:00:16]} 59. a4 {[%clk 0:00:15]}  Kd5 {[%clk 0:00:16]} 60. a5 {[%clk 0:00:13]}  Kc6 {[%clk 0:00:15]} 61. Kf5 {[%clk 0:00:14]}  Kb5 {[%clk 0:00:16]} 62. Kf6 {[%clk 0:00:15]}  Kxa5 {[%clk 0:00:16]} 63. Kxf7 {[%clk 0:00:15]} 1/2-1/2


[Site "https://www.chess.com"]

[Event "Titled Tuesday Blitz April 4 Early 2023"]
[White "Deuer, Marius"]
[Black "Antonio, Jorge Carlos"]
[WhiteFideId "16236432"]
[BlackFideId "113190"]
[WhiteElo "2163"]
[BlackElo "2247"]
[Result "0-1"]
[Round "10"]
[TimeControl "180+2"]
[Date "2023.04.04"]
[WhiteClock "0:00:06"]
[BlackClock "0:00:04"]

1. b3 {[%clk 0:02:57]}  d5 {[%clk 0:02:58]} 2. Bb2 {[%clk 0:02:58]}  Nc6 {[%clk 0:02:56]} 3. e4 {[%clk 0:02:59]}  d4 {[%clk 0:02:53]} 4. f4 {[%clk 0:02:43]}  Nf6 {[%clk 0:02:47]} 5. d3 {[%clk 0:01:59]}  e5 {[%clk 0:02:43]} 6. Nf3 {[%clk 0:01:58]}  exf4 {[%clk 0:02:40]} 7. Nbd2 {[%clk 0:01:46]}  Ng4 {[%clk 0:02:36]} 8. Qe2 {[%clk 0:01:34]}  Ne3 {[%clk 0:02:35]} 9. Nc4 {[%clk 0:01:30]}  Bb4+ {[%clk 0:02:30]} 10. Kf2 {[%clk 0:01:25]}  O-O {[%clk 0:02:26]} 11. g3 {[%clk 0:01:20]}  fxg3+ {[%clk 0:02:13]} 12. hxg3 {[%clk 0:01:20]}  Ng4+ {[%clk 0:02:08]} 13. Kg1 {[%clk 0:01:18]}  f5 {[%clk 0:02:02]} 14. e5 {[%clk 0:01:13]}  Be6 {[%clk 0:01:54]} 15. Bg2 {[%clk 0:01:04]}  Bc3 {[%clk 0:01:42]} 16. Bxc3 {[%clk 0:01:00]}  dxc3 {[%clk 0:01:41]} 17. Re1 {[%clk 0:00:41]}  Nd4 {[%clk 0:01:37]} 18. Qd1 {[%clk 0:00:40]}  Nxf3+ {[%clk 0:01:33]} 19. Qxf3 {[%clk 0:00:41]}  Qd4+ {[%clk 0:01:29]} 20. Kf1 {[%clk 0:00:40]}  b5 {[%clk 0:01:21]} 21. Na5 {[%clk 0:00:32]}  c5 {[%clk 0:01:17]} 22. Nc6 {[%clk 0:00:23]}  Qd7 {[%clk 0:01:12]} 23. Qf4 {[%clk 0:00:22]}  Rac8 {[%clk 0:01:06]} 24. Na5 {[%clk 0:00:16]}  g6 {[%clk 0:01:00]} 25. Nb7 {[%clk 0:00:16]}  Qg7 {[%clk 0:00:53]} 26. Nd6 {[%clk 0:00:12]}  g5 {[%clk 0:00:49]} 27. Qf3 {[%clk 0:00:12]}  f4 {[%clk 0:00:44]} 28. Kg1 {[%clk 0:00:12]}  Nxe5 {[%clk 0:00:40]} 29. Qe4 {[%clk 0:00:11]}  f3 {[%clk 0:00:37]} 30. Bh3 {[%clk 0:00:02]}  f2+ {[%clk 0:00:34]} 31. Kh2 {[%clk 0:00:03]}  fxe1=Q {[%clk 0:00:25]} 32. Bxe6+ {[%clk 0:00:03]}  Kh8 {[%clk 0:00:24]} 33. Rxe1 {[%clk 0:00:04]}  Qh6+ {[%clk 0:00:21]} 34. Kg2 {[%clk 0:00:04]}  Qxe6 {[%clk 0:00:19]} 35. Nxc8 {[%clk 0:00:05]}  Qxc8 {[%clk 0:00:16]} 36. Qxe5+ {[%clk 0:00:05]}  Kg8 {[%clk 0:00:14]} 37. Qxg5+ {[%clk 0:00:03]}  Kh8 {[%clk 0:00:12]} 38. Qe5+ {[%clk 0:00:03]}  Kg8 {[%clk 0:00:12]} 39. Re4 {[%clk 0:00:03]}  Rf7 {[%clk 0:00:05]} 40. Qg5+ {[%clk 0:00:02]}  Kf8 {[%clk 0:00:05]} 41. Qd5 {[%clk 0:00:02]}  Qd7 {[%clk 0:00:03]} 42. Rf4 {[%clk 0:00:03]}  Qxd5+ {[%clk 0:00:02]} 43. Kh3 {[%clk 0:00:02]}  Rxf4 {[%clk 0:00:02]} 44. gxf4 {[%clk 0:00:03]}  Qd4 {[%clk 0:00:02]} 45. Kh4 {[%clk 0:00:04]}  c4 {[%clk 0:00:02]} 46. Kh5 {[%clk 0:00:05]}  cxd3 {[%clk 0:00:03]} 47. Kg5 {[%clk 0:00:06]}  dxc2 {[%clk 0:00:03]} 48. f5 {[%clk 0:00:06]}  c1=Q+ {[%clk 0:00:03]} 49. Kh5 {[%clk 0:00:07]}  Qdf4 {[%clk 0:00:03]} 50. f6 {[%clk 0:00:07]}  Qg3 {[%clk 0:00:03]} 51. f7 {[%clk 0:00:06]}  Qh1# {[%clk 0:00:04]} 0-1


[Site "https://www.chess.com"]

[Event "Titled Tuesday Blitz April 4 Early 2023"]
[White "Kujawski, Adam"]
[Black "Acikel, Mert"]
[WhiteFideId "1100920"]
[BlackFideId "12956465"]
[WhiteElo "2054"]
[BlackElo "2097"]
[Result "1-0"]
[Round "10"]
[TimeControl "180+2"]
[Date "2023.04.04"]
[WhiteClock "0:00:08"]
[BlackClock "0:00:40"]

1. e4 {[%clk 0:02:56]}  e5 {[%clk 0:03:00]} 2. Nf3 {[%clk 0:02:56]}  Nc6 {[%clk 0:03:00]} 3. Bb5 {[%clk 0:02:55]}  a6 {[%clk 0:03:00]} 4. Ba4 {[%clk 0:02:55]}  Nf6 {[%clk 0:03:01]} 5. O-O {[%clk 0:02:54]}  Be7 {[%clk 0:03:01]} 6. d3 {[%clk 0:02:54]}  d6 {[%clk 0:03:00]} 7. c3 {[%clk 0:02:53]}  O-O {[%clk 0:02:57]} 8. Nbd2 {[%clk 0:02:50]}  b5 {[%clk 0:02:56]} 9. Bc2 {[%clk 0:02:49]}  Nb8 {[%clk 0:02:55]} 10. d4 {[%clk 0:02:47]}  Nbd7 {[%clk 0:02:55]} 11. a4 {[%clk 0:02:43]}  Bb7 {[%clk 0:02:55]} 12. Re1 {[%clk 0:02:41]}  Re8 {[%clk 0:02:55]} 13. b4 {[%clk 0:02:29]}  Bf8 {[%clk 0:02:47]} 14. Bb2 {[%clk 0:02:22]}  Nb6 {[%clk 0:02:41]} 15. a5 {[%clk 0:02:20]}  Nbd7 {[%clk 0:02:42]} 16. d5 {[%clk 0:01:47]}  c6 {[%clk 0:02:39]} 17. dxc6 {[%clk 0:01:45]}  Bxc6 {[%clk 0:02:39]} 18. Bb3 {[%clk 0:01:42]}  h6 {[%clk 0:02:32]} 19. Qc2 {[%clk 0:01:33]}  Rc8 {[%clk 0:02:30]} 20. Nf1 {[%clk 0:01:31]}  d5 {[%clk 0:02:29]} 21. exd5 {[%clk 0:01:23]}  Bxd5 {[%clk 0:02:30]} 22. Bxd5 {[%clk 0:01:22]}  Nxd5 {[%clk 0:02:31]} 23. Qb3 {[%clk 0:01:16]}  Nf4 {[%clk 0:02:28]} 24. Rad1 {[%clk 0:01:11]}  Qe7 {[%clk 0:02:22]} 25. Ng3 {[%clk 0:01:00]}  g6 {[%clk 0:02:10]} 26. Bc1 {[%clk 0:00:58]}  Rc4 {[%clk 0:01:36]} 27. Bxf4 {[%clk 0:00:46]}  Rxf4 {[%clk 0:01:36]} 28. Qd5 {[%clk 0:00:41]}  Nf6 {[%clk 0:00:58]} 29. Qxe5 {[%clk 0:00:35]}  Qxe5 {[%clk 0:00:57]} 30. Rxe5 {[%clk 0:00:32]}  Rc8 {[%clk 0:00:57]} 31. Rd3 {[%clk 0:00:20]}  Rfc4 {[%clk 0:00:53]} 32. Ne2 {[%clk 0:00:16]}  Ng4 {[%clk 0:00:47]} 33. Red5 {[%clk 0:00:13]}  Re8 {[%clk 0:00:47]} 34. Kf1 {[%clk 0:00:11]}  Bg7 {[%clk 0:00:42]} 35. Rd8 {[%clk 0:00:10]}  Rxd8 {[%clk 0:00:42]} 36. Rxd8+ {[%clk 0:00:11]}  Kh7 {[%clk 0:00:43]} 37. Rd7 {[%clk 0:00:09]}  Kg8 {[%clk 0:00:41]} 38. h3 {[%clk 0:00:09]}  Nf6 {[%clk 0:00:40]} 39. Rd6 {[%clk 0:00:09]}  Ne4 {[%clk 0:00:38]} 40. Rxa6 {[%clk 0:00:09]}  Nxc3 {[%clk 0:00:39]} 41. Nxc3 {[%clk 0:00:09]}  Rxc3 {[%clk 0:00:40]} 42. Rb6 {[%clk 0:00:08]} 1-0


[Site "https://www.chess.com"]

[Event "Titled Tuesday Blitz April 4 Early 2023"]
[White "Ovezdurdyyeva, Jemal"]
[Black "Grabinsky, Vladimir"]
[WhiteFideId "14001888"]
[BlackFideId "14107074"]
[WhiteElo "2043"]
[BlackElo "2027"]
[Result "0-1"]
[Round "10"]
[TimeControl "180+2"]
[Date "2023.04.04"]
[WhiteClock "0:00:14"]
[BlackClock "0:00:18"]

1. e4 {[%clk 0:03:00]}  c5 {[%clk 0:02:57]} 2. Nf3 {[%clk 0:03:00]}  Nc6 {[%clk 0:02:57]} 3. c3 {[%clk 0:02:59]}  Nf6 {[%clk 0:02:56]} 4. Bd3 {[%clk 0:02:59]}  d6 {[%clk 0:02:46]} 5. O-O {[%clk 0:02:58]}  Bg4 {[%clk 0:02:46]} 6. h3 {[%clk 0:02:58]}  Bh5 {[%clk 0:02:46]} 7. Bc2 {[%clk 0:02:52]}  e6 {[%clk 0:02:41]} 8. d4 {[%clk 0:02:52]}  cxd4 {[%clk 0:02:37]} 9. cxd4 {[%clk 0:02:52]}  Bxf3 {[%clk 0:02:36]} 10. gxf3 {[%clk 0:02:32]}  Be7 {[%clk 0:02:21]} 11. Nc3 {[%clk 0:02:30]}  O-O {[%clk 0:02:19]} 12. a3 {[%clk 0:02:31]}  e5 {[%clk 0:02:10]} 13. Ne2 {[%clk 0:02:27]}  Nh5 {[%clk 0:02:05]} 14. d5 {[%clk 0:02:26]}  Nd4 {[%clk 0:01:49]} 15. Nxd4 {[%clk 0:02:25]}  exd4 {[%clk 0:01:49]} 16. f4 {[%clk 0:02:15]}  g6 {[%clk 0:01:46]} 17. Qxd4 {[%clk 0:02:14]}  Rc8 {[%clk 0:01:41]} 18. Bd1 {[%clk 0:02:13]}  Bf6 {[%clk 0:01:36]} 19. Qxa7 {[%clk 0:02:03]}  Rxc1 {[%clk 0:01:31]} 20. Rxc1 {[%clk 0:02:02]}  Nxf4 {[%clk 0:01:31]} 21. Qe3 {[%clk 0:01:55]}  Be5 {[%clk 0:01:28]} 22. Kh1 {[%clk 0:01:44]}  Qh4 {[%clk 0:01:12]} 23. Qg3 {[%clk 0:01:23]}  Qh6 {[%clk 0:01:12]} 24. Qe3 {[%clk 0:01:10]}  Bd4 {[%clk 0:00:59]} 25. Qg3 {[%clk 0:00:34]}  Nxh3 {[%clk 0:00:58]} 26. Bf3 {[%clk 0:00:28]}  Be5 {[%clk 0:00:38]} 27. Qg2 {[%clk 0:00:20]}  Nxf2+ {[%clk 0:00:26]} 28. Kg1 {[%clk 0:00:20]}  Nd3 {[%clk 0:00:26]} 29. Rc2 {[%clk 0:00:17]}  Bd4+ {[%clk 0:00:26]} 30. Rff2 {[%clk 0:00:15]}  Nxf2 {[%clk 0:00:23]} 31. Rxf2 {[%clk 0:00:14]}  Rc8 {[%clk 0:00:18]} 0-1


[Site "https://www.chess.com"]

[Event "Titled Tuesday Blitz April 4 Early 2023"]
[White "Carrasco Miranda, Andres"]
[Black "Necula, Iulian"]
[WhiteFideId "3405990"]
[BlackFideId "1232380"]
[WhiteElo "2183"]
[BlackElo "1790"]
[Result "1-0"]
[Round "10"]
[TimeControl "180+2"]
[Date "2023.04.04"]
[WhiteClock "0:00:12"]
[BlackClock "0:00:02"]

1. d4 {[%clk 0:03:00]}  d6 {[%clk 0:03:00]} 2. c4 {[%clk 0:03:00]}  f5 {[%clk 0:03:01]} 3. Nf3 {[%clk 0:03:01]}  Nf6 {[%clk 0:03:01]} 4. g3 {[%clk 0:03:01]}  g6 {[%clk 0:03:02]} 5. Bg2 {[%clk 0:03:02]}  Bg7 {[%clk 0:03:03]} 6. O-O {[%clk 0:03:02]}  O-O {[%clk 0:03:04]} 7. Nc3 {[%clk 0:03:03]}  Qe8 {[%clk 0:03:03]} 8. Qb3 {[%clk 0:03:03]}  Na6 {[%clk 0:03:01]} 9. Ng5 {[%clk 0:02:40]}  h6 {[%clk 0:02:52]} 10. c5+ {[%clk 0:02:37]}  Kh8 {[%clk 0:02:49]} 11. Ne6 {[%clk 0:02:34]}  Bxe6 {[%clk 0:02:49]} 12. Qxe6 {[%clk 0:02:34]}  Rb8 {[%clk 0:02:31]} 13. cxd6 {[%clk 0:02:32]}  exd6 {[%clk 0:02:25]} 14. Qxe8 {[%clk 0:02:31]}  Rfxe8 {[%clk 0:02:25]} 15. e3 {[%clk 0:02:31]}  c6 {[%clk 0:02:23]} 16. a3 {[%clk 0:02:22]}  d5 {[%clk 0:02:22]} 17. b4 {[%clk 0:02:21]}  Nc7 {[%clk 0:02:22]} 18. Bb2 {[%clk 0:02:18]}  a6 {[%clk 0:02:21]} 19. Na4 {[%clk 0:02:16]}  Nb5 {[%clk 0:02:15]} 20. Rfc1 {[%clk 0:02:12]}  Rbd8 {[%clk 0:02:11]} 21. Nc5 {[%clk 0:02:10]}  Re7 {[%clk 0:02:08]} 22. a4 {[%clk 0:02:10]}  Nd6 {[%clk 0:02:05]} 23. Bf1 {[%clk 0:02:11]}  Nfe4 {[%clk 0:02:03]} 24. b5 {[%clk 0:02:07]}  axb5 {[%clk 0:02:03]} 25. axb5 {[%clk 0:02:07]}  Nxc5 {[%clk 0:01:59]} 26. Rxc5 {[%clk 0:02:06]}  Ne4 {[%clk 0:01:55]} 27. Rc2 {[%clk 0:02:00]}  Re6 {[%clk 0:01:50]} 28. Ra7 {[%clk 0:01:56]}  Rb8 {[%clk 0:01:46]} 29. Ba3 {[%clk 0:01:41]}  Bf6 {[%clk 0:01:37]} 30. Rb2 {[%clk 0:01:29]}  Bd8 {[%clk 0:01:21]} 31. bxc6 {[%clk 0:01:26]}  Rxc6 {[%clk 0:01:20]} 32. Rbxb7 {[%clk 0:01:25]}  Rxb7 {[%clk 0:01:20]} 33. Rxb7 {[%clk 0:01:26]}  Ba5 {[%clk 0:01:16]} 34. Bf8 {[%clk 0:01:06]}  h5 {[%clk 0:01:13]} 35. Bg7+ {[%clk 0:01:04]}  Kg8 {[%clk 0:01:13]} 36. Be5 {[%clk 0:01:03]}  Rc2 {[%clk 0:01:07]} 37. Bb5 {[%clk 0:00:55]}  Nxf2 {[%clk 0:00:48]} 38. Bd7 {[%clk 0:00:29]}  Nh3+ {[%clk 0:00:48]} 39. Kh1 {[%clk 0:00:29]}  Nf2+ {[%clk 0:00:48]} 40. Kg2 {[%clk 0:00:23]}  Ng4+ {[%clk 0:00:47]} 41. Kg1 {[%clk 0:00:23]}  Nxh2 {[%clk 0:00:45]} 42. Be6+ {[%clk 0:00:22]}  Kf8 {[%clk 0:00:44]} 43. Bd6+ {[%clk 0:00:22]}  Ke8 {[%clk 0:00:42]} 44. Rb8+ {[%clk 0:00:22]}  Bd8 {[%clk 0:00:43]} 45. Bxd5 {[%clk 0:00:22]}  Kd7 {[%clk 0:00:38]} 46. Bf4 {[%clk 0:00:20]}  Ng4 {[%clk 0:00:33]} 47. Rb7+ {[%clk 0:00:20]}  Kc8 {[%clk 0:00:31]} 48. Rg7 {[%clk 0:00:16]}  Rc1+ {[%clk 0:00:28]} 49. Kg2 {[%clk 0:00:15]}  Rc2+ {[%clk 0:00:28]} 50. Kf1 {[%clk 0:00:16]}  Rc1+ {[%clk 0:00:24]} 51. Ke2 {[%clk 0:00:15]}  Rc2+ {[%clk 0:00:22]} 52. Kd3 {[%clk 0:00:14]}  Rc1 {[%clk 0:00:17]} 53. Rxg6 {[%clk 0:00:11]}  Nf2+ {[%clk 0:00:17]} 54. Kd2 {[%clk 0:00:10]}  Rg1 {[%clk 0:00:06]} 55. Be6+ {[%clk 0:00:09]}  Kb7 {[%clk 0:00:05]} 56. Bxf5 {[%clk 0:00:10]}  Ng4 {[%clk 0:00:04]} 57. Bxg4 {[%clk 0:00:10]}  hxg4 {[%clk 0:00:04]} 58. Rxg4 {[%clk 0:00:10]}  Ba5+ {[%clk 0:00:02]} 59. Kd3 {[%clk 0:00:11]}  Rg2 {[%clk 0:00:02]} 60. Ke4 {[%clk 0:00:12]}  Re2 {[%clk 0:00:02]} 61. Rg7+ {[%clk 0:00:12]}  Kc6 {[%clk 0:00:02]} 62. Rg6+ {[%clk 0:00:13]}  Kd7 {[%clk 0:00:02]} 63. g4 {[%clk 0:00:13]}  Ke8 {[%clk 0:00:03]} 64. g5 {[%clk 0:00:13]}  Kf7 {[%clk 0:00:04]} 65. Rf6+ {[%clk 0:00:14]}  Kg7 {[%clk 0:00:04]} 66. Ra6 {[%clk 0:00:13]}  Bc3 {[%clk 0:00:03]} 67. Kf5 {[%clk 0:00:13]}  Rg2 {[%clk 0:00:02]} 68. Ra7+ {[%clk 0:00:13]}  Kg8 {[%clk 0:00:02]} 69. g6 {[%clk 0:00:12]} 1-0


[Site "https://www.chess.com"]

[Event "Titled Tuesday Blitz April 4 Early 2023"]
[White "Mikhaylova, Irina"]
[Black "Zampronha, Wladimir Camilo"]
[WhiteFideId "4109040"]
[BlackFideId "2103087"]
[WhiteElo "1975"]
[BlackElo "2176"]
[Result "1-0"]
[Round "10"]
[TimeControl "180+2"]
[Date "2023.04.04"]
[WhiteClock "0:00:17"]
[BlackClock "0:00:44"]

1. Nf3 {[%clk 0:03:00]}  Nf6 {[%clk 0:02:56]} 2. c4 {[%clk 0:03:00]}  e6 {[%clk 0:02:57]} 3. Nc3 {[%clk 0:02:59]}  d5 {[%clk 0:02:57]} 4. d4 {[%clk 0:02:59]}  Be7 {[%clk 0:02:57]} 5. Bg5 {[%clk 0:02:59]}  O-O {[%clk 0:02:55]} 6. e3 {[%clk 0:03:00]}  b6 {[%clk 0:02:53]} 7. Qc2 {[%clk 0:03:00]}  Bb7 {[%clk 0:02:53]} 8. Rd1 {[%clk 0:03:00]}  Nbd7 {[%clk 0:02:52]} 9. a3 {[%clk 0:03:00]}  Rc8 {[%clk 0:02:50]} 10. Be2 {[%clk 0:03:00]}  c5 {[%clk 0:02:50]} 11. cxd5 {[%clk 0:03:00]}  exd5 {[%clk 0:02:49]} 12. O-O {[%clk 0:02:58]}  c4 {[%clk 0:02:49]} 13. a4 {[%clk 0:02:51]}  a6 {[%clk 0:02:49]} 14. b3 {[%clk 0:02:48]}  cxb3 {[%clk 0:02:26]} 15. Qxb3 {[%clk 0:02:47]}  Rxc3 {[%clk 0:01:57]} 16. Qxc3 {[%clk 0:02:42]}  Ne4 {[%clk 0:01:58]} 17. Qc2 {[%clk 0:01:18]}  Nxg5 {[%clk 0:01:56]} 18. Nxg5 {[%clk 0:01:05]}  Bxg5 {[%clk 0:01:55]} 19. Rc1 {[%clk 0:01:06]}  Bf6 {[%clk 0:01:19]} 20. Qc7 {[%clk 0:00:58]}  Ba8 {[%clk 0:01:19]} 21. Bxa6 {[%clk 0:00:51]}  Nb8 {[%clk 0:01:17]} 22. Qxd8 {[%clk 0:00:42]}  Rxd8 {[%clk 0:01:14]} 23. Bb5 {[%clk 0:00:42]}  Kf8 {[%clk 0:01:12]} 24. Rc7 {[%clk 0:00:37]}  Be7 {[%clk 0:01:09]} 25. Rfc1 {[%clk 0:00:35]}  Bd6 {[%clk 0:01:09]} 26. Ra7 {[%clk 0:00:18]}  Ba3 {[%clk 0:00:50]} 27. Rc3 {[%clk 0:00:17]}  Bb4 {[%clk 0:00:49]} 28. Rc2 {[%clk 0:00:17]}  Nd7 {[%clk 0:00:46]} 29. Rxd7 {[%clk 0:00:16]}  Rxd7 {[%clk 0:00:45]} 30. Bxd7 {[%clk 0:00:17]}  Bd6 {[%clk 0:00:44]} 31. Bc6 {[%clk 0:00:17]} 1-0


[Site "https://www.chess.com"]